[Event "Istanbul Open 2019"]
[Site "Istanbul"]
[Date "2019.08.28"]
[Round "2.14"]
[White "Yilmaz, Turhan"]
[Black "Portakalci, Yusuf"]
[Result "1-0"]
[ECO "C02"]
[WhiteElo "2199"]
[BlackElo "1831"]
[Annotator "ChessBase"]
[PlyCount "99"]
[EventDate "2019.08.26"]
[EventType "swiss"]
[EventCountry "TUR"]
[TimeControl "5400+30"]

1. e4 {[%emt 0:00:00]} e6 {[%emt 0:02:30]} 2. d4 {[%emt 0:00:00]} d5 {[%emt 0:00:00]} 3. e5 {[%emt 0:00:30]} c5 {[%emt 0:00:00]} 4. c3 {[%emt 0:00:00]} Nc6 {[%emt 0:01:30]} 5. Nf3 {[%emt 0:00:00]} Be7 {[%emt 0:04:30]} 6. a3 {[%emt 0:02:30]} a5 {[%emt 0:00:30]} 7. b3 {[%emt 0:03:30]} f5 {[%emt 0:06:30]} 8. h3 {[%emt 0:02:30]} Nh6 {[%emt 0:06:30]} 9. Bxh6 {[%emt 0:02:30]} gxh6 {[%emt 0:01:30]} 10. h4 {[%emt 0:00:30]} Qb6 {[%emt 0:05:30]} 11. Be2 {[%emt 0:02:30]} Bd7 {[%emt 0:03:30]} 12. Ra2 {[%emt 0:06:30]} Rg8 {[%emt 0:12:30]} 13. O-O {[%emt 0:08:30]} O-O-O {[%emt 0:15:30]} 14. Rd2 {[%emt 0:10:30]} cxd4 {[%emt 0:08:30]} 15. cxd4 {[%emt 0:00:30]} Rg4 {[%emt 0:07:30]} 16. Re1 {[%emt 0:00:30]} Rdg8 {[%emt 0:02:03]} 17. Bf1 {[%emt 0:00:30]} Be8 {[%emt 0:03:54]} 18. Qc1 {[%emt 0:02:30]} Bh5 {[%emt 0:02:53]} 19. Rd3 {[%emt 0:04:30]} R4g6 {[%emt 0:03:51]} 20. Nbd2 {[%emt 0:01:30]} Kb8 {[%emt 0:01:49]} 21. Qb2 {[%emt 0:01:30]} Qd8 {[%emt 0:00:30]} 22. b4 {[%emt 0:00:30]} axb4 {[%emt 0:00:30]} 23. axb4 {[%emt 0:00:30]} Qf8 {[%emt 0:03:01]} 24. Ra1 {[%emt 0:07:30]} Qg7 {[%emt 0:01:13]} 25. Ne1 {[%emt 0:00:30]} Be2 {[%emt 0:04:00]} 26. Rda3 {[%emt 0:00:30]} Bxf1 {[%emt 0:00:32]} 27. Ra8+ {[%emt 0:00:30]} Kc7 {[%emt 0:00:03]} 28. Rxg8 {[%emt 0:00:30]} Qxg8 {[%emt 0:00:05]} 29. Kxf1 {[%emt 0:00:30]} Bxb4 {[%emt 0:00:48]} 30. Rb1 {[%emt 0:00:30]} Qa8 {[%emt 0:00:55]} 31. Kg1 {[%emt 0:01:30]} Rg4 {[%emt 0:00:59]} 32. Ndf3 {[%emt 0:01:30]} Qa3 {[%emt 0:00:57]} 33. Qc2 {[%emt 0:01:30]} Bxe1 {[%emt 0:00:31]} 34. Nxe1 {[%emt 0:00:30]} Rxd4 {[%emt 0:00:12]} 35. Nf3 {[%emt 0:00:30]} Rb4 {[%emt 0:00:45]} 36. Rf1 {[%emt 0:04:30]} Qb2 {[%emt 0:00:46]} 37. Qc5 {[%emt 0:00:30]} Re4 {[%emt 0:01:00]} 38. Qd6+ {[%emt 0:00:30]} Kb6 {[%emt 0:00:30]} 39. Qxe6 {[%emt 0:00:00]} d4 {[%emt 0:00:00]} 40. Qxf5 {[%emt 0:00:00]} Qe2 {[%emt 0:00:52]} 41. Rb1+ {[%emt 0:00:30]} Ka7 {[%emt 0:00:19]} 42. Qxh7 {[%emt 0:00:30]} Na5 {[%emt 0:00:27]} 43. Ra1 {[%emt 0:00:30]} Ka6 {[%emt 0:00:22]} 44. Qxh6+ {[%emt 0:00:30]} b6 {[%emt 0:00:01]} 45. Rb1 {[%emt 0:00:30]} Nc4 {[%emt 0:00:43]} 46. Qc6 {[%emt 0:00:30]} Ka7 {[%emt 0:00:11]} 47. Qd7+ {[%emt 0:00:30]} Ka6 {[%emt 0:00:12]} 48. Nxd4 {[%emt 0:00:00]} Qd3 {[%emt 0:01:08]} 49. Qc8+ {[%emt 0:00:00]} Ka5 {[%emt 0:00:06]} 50. Qa8# {[%emt 0:00:30]} 1-0

[Event "Istanbul Open 2019"]
[Site "Istanbul"]
[Date "2019.08.27"]
[Round "2.15"]
[White "Menekse, Tuncay"]
[Black "Yilmaz, Seyma"]
[Result "1-0"]
[ECO "E07"]
[WhiteElo "1684"]
[BlackElo "1509"]
[Annotator "NA"]
[PlyCount "71"]
[EventDate "2019.08.26"]
[EventType "swiss"]
[EventCountry "TUR"]
[SourceTitle "playchess.com"]
[Source "ChessBase"]
[SourceQuality "1"]
[TimeControl "5400+30"]

1. d4 {[%emt 0:05:30]} f5 {[%emt 0:00:30]} 2. Nf3 {[%emt 0:00:30]} Nf6 {[%emt 0:00:30]} 3. c4 {[%emt 0:00:30]} e6 {[%emt 0:00:30]} 4. g3 {[%emt 0:00:30]} Be7 {[%emt 0:00:00]} 5. Bg2 {[%emt 0:00:30]} d5 {[%emt 0:00:00]} 6. O-O {[%emt 0:00:30]} O-O {[%emt 0:00:00]} 7. b3 {[%emt 0:00:30]} c6 {[%emt 0:00:00]} 8. Nbd2 {[%emt 0:00:30]} Ne4 {[%emt 0:02:30]} 9. Bb2 {[%emt 0:05:30]} Nd7 {[%emt 0:02:30]} 10. e3 {[%emt 0:02:30]} Ndf6 {[%emt 0:03:30]} 11. Ne5 {[%emt 0:02:30]} Nxd2 {[%emt 0:02:30]} 12. Qxd2 {[%emt 0:00:30]} Ne4 {[%emt 0:00:00]} 13. Qc2 {[%emt 0:00:00]} Bd7 {[%emt 0:01:00]} 14. Rad1 {[%emt 0:05:00]} Be8 {[%emt 0:04:30]} 15. f3 {[%emt 0:06:30]} Nf6 {[%emt 0:01:30]} 16. Qd2 {[%emt 0:01:30]} Bh5 {[%emt 0:01:30]} 17. Rf2 {[%emt 0:00:30]} Nd7 {[%emt 0:07:30]} 18. Nd3 {[%emt 0:02:30]} g5 {[%emt 0:05:30]} 19. Rdf1 {[%emt 0:01:30]} g4 {[%emt 0:02:30]} 20. fxg4 {[%emt 0:00:30]} Bxg4 {[%emt 0:00:30]} 21. Nf4 {[%emt 0:00:30]} Qe8 {[%emt 0:10:30]} 22. Nxe6 {[%emt 0:04:30]} Qg6 {[%emt 0:05:30]} 23. Nxf8 {[%emt 0:01:30]} Rxf8 {[%emt 0:00:30]} 24. cxd5 {[%emt 0:02:30]} Bd6 {[%emt 0:02:30]} 25. dxc6 {[%emt 0:00:30]} bxc6 {[%emt 0:01:30]} 26. Bxc6 {[%emt 0:01:30]} Nf6 {[%emt 0:00:00]} 27. Bg2 {[%emt 0:00:30]} Ne4 {[%emt 0:04:00]} 28. Bxe4 {[%emt 0:00:30]} fxe4 {[%emt 0:00:30]} 29. Rxf8+ {[%emt 0:00:30]} Bxf8 {[%emt 0:00:30]} 30. Qc2 {[%emt 0:00:30]} Bh6 {[%emt 0:02:30]} 31. Bc1 {[%emt 0:01:30]} Be6 {[%emt 0:02:30]} 32. d5 {[%emt 0:00:30]} Bh3 {[%emt 0:01:30]} 33. Rf2 {[%emt 0:01:30]} Qg4 {[%emt 0:03:30]} 34. d6 {[%emt 0:06:30]} Bf8 {[%emt 0:04:30]} 35. Qc4+ {[%emt 0:01:30]} Kg7 {[%emt 0:00:30]} 36. Qf7+ {[%emt 0:00:30]} 1-0

[Event "Istanbul Open 2019"]
[Site "Istanbul"]
[Date "2019.08.27"]
[Round "2.16"]
[White "Al Kathiri, Hassan"]
[Black "Amanmuradow, Atajan"]
[Result "0-1"]
[ECO "B01"]
[WhiteElo "1636"]
[BlackElo "1794"]
[Annotator "NA"]
[PlyCount "112"]
[EventDate "2019.08.26"]
[EventType "swiss"]
[EventCountry "TUR"]
[SourceTitle "playchess.com"]
[Source "ChessBase"]
[SourceQuality "1"]
[TimeControl "5400+30"]

1. e4 {[%emt 0:02:30]} d5 {[%emt 0:08:30]} 2. exd5 {[%emt 0:01:30]} Qxd5 {[%emt 0:00:30]} 3. Nc3 {[%emt 0:00:30]} Qa5 {[%emt 0:00:30]} 4. d4 {[%emt 0:00:30]} Nf6 {[%emt 0:01:30]} 5. Bd3 {[%emt 0:03:30]} c6 {[%emt 0:00:30]} 6. Nf3 {[%emt 0:00:30]} Bg4 {[%emt 0:01:30]} 7. h3 {[%emt 0:00:30]} Bh5 {[%emt 0:00:30]} 8. O-O {[%emt 0:01:30]} Nbd7 {[%emt 0:00:30]} 9. Bf4 {[%emt 0:01:30]} e6 {[%emt 0:01:30]} 10. a3 {[%emt 0:02:30]} Be7 {[%emt 0:04:30]} 11. b4 {[%emt 0:02:30]} Qd8 {[%emt 0:02:30]} 12. Be2 {[%emt 0:01:30]} Nb6 {[%emt 0:00:30]} 13. Rb1 {[%emt 0:03:30]} O-O {[%emt 0:02:30]} 14. g4 {[%emt 0:05:30]} Bg6 {[%emt 0:02:30]} 15. Ne5 {[%emt 0:00:30]} Nfd5 {[%emt 0:04:30]} 16. Nxd5 {[%emt 0:05:30]} cxd5 {[%emt 0:02:30]} 17. Nxg6 {[%emt 0:05:30]} hxg6 {[%emt 0:00:30]} 18. Rb3 {[%emt 0:01:30]} Qd7 {[%emt 0:01:30]} 19. b5 {[%emt 0:04:30]} Rfc8 {[%emt 0:00:30]} 20. Qd3 {[%emt 0:02:30]} Rc4 {[%emt 0:04:30]} 21. Qd2 {[%emt 0:01:30]} Ra4 {[%emt 0:02:30]} 22. Ra1 {[%emt 0:02:30]} Rc8 {[%emt 0:11:30]} 23. c3 {[%emt 0:05:30]} Nc4 {[%emt 0:07:30]} 24. Qc1 {[%emt 0:02:30]} Qd8 {[%emt 0:11:30]} 25. Bxc4 {[%emt 0:15:30]} Rcxc4 {[%emt 0:00:30]} 26. Qb2 {[%emt 0:01:30]} b6 {[%emt 0:00:30]} 27. Bc1 {[%emt 0:03:30]} Bd6 {[%emt 0:02:30]} 28. Qd2 {[%emt 0:03:30]} Rc8 {[%emt 0:03:30]} 29. Qd3 {[%emt 0:02:12]} Qf6 {[%emt 0:02:30]} 30. Kg2 {[%emt 0:01:24]} e5 {[%emt 0:04:22]} 31. dxe5 {[%emt 0:03:39]} Qxe5 {[%emt 0:00:02]} 32. f4 {[%emt 0:01:44]} Qe6 {[%emt 0:00:17]} 33. Rb4 {[%emt 0:09:22]} Bxb4 {[%emt 0:02:29]} 34. cxb4 {[%emt 0:00:37]} Qe4+ {[%emt 0:00:09]} 35. Qxe4 {[%emt 0:00:44]} dxe4 {[%emt 0:00:02]} 36. Kf2 {[%emt 0:01:43]} Rc3 {[%emt 0:00:01]} 37. h4 {[%emt 0:00:51]} f5 {[%emt 0:00:08]} 38. gxf5 {[%emt 0:01:10]} gxf5 {[%emt 0:00:30]} 39. Ke2 {[%emt 0:00:00]} Rb3 {[%emt 0:00:24]} 40. Ra2 {[%emt 0:01:33]} Rbxb4 {[%emt 0:00:13]} 41. Bb2 {[%emt 0:00:49]} Rxb5 {[%emt 0:00:09]} 42. Be5 {[%emt 0:00:17]} Rb3 {[%emt 0:00:05]} 43. Rd2 {[%emt 0:00:22]} Raxa3 {[%emt 0:00:14]} 44. Rd8+ {[%emt 0:00:11]} Kh7 {[%emt 0:00:30]} 45. Rd7 {[%emt 0:00:00]} Ra2+ {[%emt 0:00:05]} 46. Rd2 {[%emt 0:00:21]} Rxd2+ {[%emt 0:00:30]} 47. Kxd2 {[%emt 0:00:00]} a5 {[%emt 0:00:00]} 48. Kc2 {[%emt 0:00:10]} a4 {[%emt 0:00:17]} 49. Bc7 {[%emt 0:00:00]} b5 {[%emt 0:00:00]} 50. Be5 {[%emt 0:00:13]} b4 {[%emt 0:00:03]} 51. Bd6 {[%emt 0:00:03]} Rc3+ {[%emt 0:00:30]} 52. Kb2 {[%emt 0:00:30]} a3+ {[%emt 0:00:00]} 53. Kb1 {[%emt 0:00:26]} e3 {[%emt 0:00:00]} 54. Ka1 {[%emt 0:00:12]} e2 {[%emt 0:00:30]} 55. Bxb4 {[%emt 0:00:56]} e1=Q+ {[%emt 0:00:30]} 56. Ka2 {[%emt 0:00:00]} Qd2+ {[%emt 0:00:00]} 0-1

[Event "Istanbul Open 2019"]
[Site "Istanbul"]
[Date "2019.08.27"]
[Round "2.17"]
[White "Suer, Halil Cenk"]
[Black "Hakkaki Fard, Pedram"]
[Result "0-1"]
[ECO "D12"]
[WhiteElo "1531"]
[BlackElo "1720"]
[Annotator "NA"]
[PlyCount "74"]
[EventDate "2019.08.26"]
[EventType "swiss"]
[EventCountry "TUR"]
[SourceTitle "playchess.com"]
[Source "ChessBase"]
[SourceQuality "1"]
[TimeControl "5400+30"]

1. Nf3 {[%emt 0:00:30]} Nf6 {[%emt 0:00:30]} 2. c4 {[%emt 0:00:30]} c6 {[%emt 0:00:00]} 3. d4 {[%emt 0:00:30]} d5 {[%emt 0:01:00]} 4. e3 {[%emt 0:00:30]} Bf5 {[%emt 0:09:30]} 5. cxd5 {[%emt 0:03:30]} cxd5 {[%emt 0:00:30]} 6. Nc3 {[%emt 0:00:30]} e6 {[%emt 0:05:30]} 7. Bb5+ {[%emt 0:03:30]} Nbd7 {[%emt 0:01:30]} 8. O-O {[%emt 0:00:30]} a6 {[%emt 0:02:30]} 9. Bd3 {[%emt 0:02:30]} Bg6 {[%emt 0:10:30]} 10. Qe2 {[%emt 0:05:30]} Ne4 {[%emt 0:05:30]} 11. Nd2 {[%emt 0:04:30]} Bd6 {[%emt 0:06:30]} 12. Ncxe4 {[%emt 0:04:30]} dxe4 {[%emt 0:01:30]} 13. Bxe4 {[%emt 0:05:30]} Bxh2+ {[%emt 0:02:30]} 14. Kxh2 {[%emt 0:00:30]} Qh4+ {[%emt 0:00:30]} 15. Kg1 {[%emt 0:00:00]} Bxe4 {[%emt 0:00:30]} 16. Nxe4 {[%emt 0:00:00]} Qxe4 {[%emt 0:00:00]} 17. f3 {[%emt 0:01:30]} Qg6 {[%emt 0:11:00]} 18. b3 {[%emt 0:03:30]} O-O {[%emt 0:00:30]} 19. Ba3 {[%emt 0:03:30]} Rac8 {[%emt 0:03:30]} 20. Rac1 {[%emt 0:03:30]} Rfe8 {[%emt 0:00:00]} 21. Qd2 {[%emt 0:04:30]} Nf6 {[%emt 0:05:00]} 22. Rc4 {[%emt 0:08:30]} h5 {[%emt 0:13:13]} 23. Rfc1 {[%emt 0:03:30]} Rcd8 {[%emt 0:00:30]} 24. e4 {[%emt 0:03:30]} Rd7 {[%emt 0:02:51]} 25. Rc8 {[%emt 0:06:30]} Rxc8 {[%emt 0:02:00]} 26. Rxc8+ {[%emt 0:00:30]} Kh7 {[%emt 0:00:00]} 27. Qb4 {[%emt 0:04:30]} Qg3 {[%emt 0:02:04]} 28. Bc1 {[%emt 0:09:02]} h4 {[%emt 0:01:21]} 29. Be3 {[%emt 0:04:27]} Nxe4 {[%emt 0:02:20]} 30. fxe4 {[%emt 0:04:33]} Qxe3+ {[%emt 0:00:18]} 31. Kh1 {[%emt 0:01:32]} Rxd4 {[%emt 0:00:47]} 32. Qc3 {[%emt 0:02:11]} Rd1+ {[%emt 0:01:01]} 33. Kh2 {[%emt 0:00:08]} Qf4+ {[%emt 0:01:21]} 34. g3 {[%emt 0:00:25]} hxg3+ {[%emt 0:00:38]} 35. Kg2 {[%emt 0:01:44]} Rd2+ {[%emt 0:00:38]} 36. Qxd2 {[%emt 0:00:52]} Qxd2+ {[%emt 0:00:34]} 37. Kxg3 {[%emt 0:00:30]} Qe3+ {[%emt 0:00:00]} 0-1

[Event "Istanbul Open 2019"]
[Site "Istanbul"]
[Date "2019.08.27"]
[Round "2.18"]
[White "Pektas, Gokdeniz"]
[Black "Bapoglu, Ibrahim"]
[Result "1-0"]
[ECO "D36"]
[WhiteElo "1652"]
[BlackElo "1501"]
[Annotator "NA"]
[PlyCount "99"]
[EventDate "2019.08.26"]
[EventType "swiss"]
[EventCountry "TUR"]
[SourceTitle "playchess.com"]
[Source "ChessBase"]
[SourceQuality "1"]
[TimeControl "5400+30"]

1. d4 {[%emt 0:01:30]} Nf6 {[%emt 0:00:30]} 2. c4 {[%emt 0:01:30]} e6 {[%emt 0:00:30]} 3. Nc3 {[%emt 0:00:00]} d5 {[%emt 0:00:30]} 4. cxd5 {[%emt 0:02:00]} exd5 {[%emt 0:00:30]} 5. Bg5 {[%emt 0:01:30]} Be7 {[%emt 0:01:30]} 6. Qc2 {[%emt 0:00:30]} c6 {[%emt 0:00:30]} 7. e3 {[%emt 0:00:30]} h6 {[%emt 0:04:30]} 8. Bf4 {[%emt 0:01:30]} Nbd7 {[%emt 0:01:30]} 9. h3 {[%emt 0:00:30]} Nf8 {[%emt 0:01:30]} 10. Bd3 {[%emt 0:00:30]} Ne6 {[%emt 0:00:30]} 11. Be5 {[%emt 0:01:30]} Nd7 {[%emt 0:03:30]} 12. Bh2 {[%emt 0:00:30]} Nf6 {[%emt 0:00:30]} 13. Nf3 {[%emt 0:00:30]} Bd6 {[%emt 0:01:30]} 14. O-O-O {[%emt 0:04:30]} Bxh2 {[%emt 0:03:30]} 15. Rxh2 {[%emt 0:00:00]} b5 {[%emt 0:00:00]} 16. e4 {[%emt 0:02:00]} dxe4 {[%emt 0:03:00]} 17. Bxe4 {[%emt 0:05:30]} Bb7 {[%emt 0:01:30]} 18. Nxb5 {[%emt 0:02:30]} Nxe4 {[%emt 0:01:30]} 19. Qxe4 {[%emt 0:00:00]} O-O {[%emt 0:02:30]} 20. Nc3 {[%emt 0:00:00]} Rb8 {[%emt 0:01:30]} 21. Rhh1 {[%emt 0:01:30]} Ng5 {[%emt 0:01:30]} 22. Nxg5 {[%emt 0:00:30]} Qxg5+ {[%emt 0:00:00]} 23. f4 {[%emt 0:00:30]} Qa5 {[%emt 0:00:00]} 24. Qe5 {[%emt 0:01:30]} Qb6 {[%emt 0:05:30]} 25. Qc5 {[%emt 0:01:30]} Qc7 {[%emt 0:01:30]} 26. Rhf1 {[%emt 0:00:30]} Ba6 {[%emt 0:00:30]} 27. Rf2 {[%emt 0:00:30]} Bc8 {[%emt 0:02:30]} 28. Nd5 {[%emt 0:03:30]} Qb7 {[%emt 0:01:30]} 29. Ne7+ {[%emt 0:00:30]} Kh8 {[%emt 0:00:30]} 30. Ng6+ {[%emt 0:00:30]} fxg6 {[%emt 0:00:30]} 31. Qxf8+ {[%emt 0:00:30]} Kh7 {[%emt 0:00:00]} 32. Qa3 {[%emt 0:00:00]} Be6 {[%emt 0:01:00]} 33. Re1 {[%emt 0:03:00]} Qf7 {[%emt 0:01:30]} 34. Qd6 {[%emt 0:01:30]} Re8 {[%emt 0:00:30]} 35. Rfe2 {[%emt 0:02:30]} Bxa2 {[%emt 0:04:30]} 36. Rxe8 {[%emt 0:00:30]} Qc4+ {[%emt 0:00:30]} 37. Kd2 {[%emt 0:00:30]} Qb5 {[%emt 0:01:30]} 38. Qa3 {[%emt 0:00:30]} Qd5 {[%emt 0:01:30]} 39. R8e4 {[%emt 0:04:30]} Bb1 {[%emt 0:02:30]} 40. Qe3 {[%emt 0:02:30]} Qa5+ {[%emt 0:03:30]} 41. Qc3 {[%emt 0:00:30]} Qd5 {[%emt 0:00:00]} 42. R4e2 {[%emt 0:00:30]} Bf5 {[%emt 0:02:00]} 43. g4 {[%emt 0:00:30]} Bc8 {[%emt 0:00:00]} 44. Rg1 {[%emt 0:00:30]} Ba6 {[%emt 0:01:00]} 45. Re5 {[%emt 0:00:30]} Qd7 {[%emt 0:00:30]} 46. f5 {[%emt 0:00:30]} g5 {[%emt 0:04:30]} 47. Rge1 {[%emt 0:00:00]} Qd6 {[%emt 0:00:30]} 48. Qc5 {[%emt 0:00:00]} Qb8 {[%emt 0:00:30]} 49. Qc2 {[%emt 0:01:30]} c5 {[%emt 0:00:30]} 50. f6+ {[%emt 0:00:30]} 1-0

[Event "Istanbul Open 2019"]
[Site "Istanbul"]
[Date "2019.08.27"]
[Round "2.19"]
[White "Mirza, Efe"]
[Black "Can, Ilhan"]
[Result "0-1"]
[ECO "B32"]
[WhiteElo "1447"]
[BlackElo "1683"]
[Annotator "NA"]
[PlyCount "102"]
[EventDate "2019.08.26"]
[EventType "swiss"]
[EventCountry "TUR"]
[SourceTitle "playchess.com"]
[Source "ChessBase"]
[SourceQuality "1"]
[TimeControl "5400+30"]

1. e4 {[%emt 0:00:30]} c5 {[%emt 0:00:30]} 2. Nf3 {[%emt 0:00:00]} e6 {[%emt 0:00:00]} 3. d4 {[%emt 0:00:00]} cxd4 {[%emt 0:00:00]} 4. Nxd4 {[%emt 0:00:30]} Qb6 {[%emt 0:00:00]} 5. Nb3 {[%emt 0:04:30]} Nc6 {[%emt 0:00:00]} 6. c3 {[%emt 0:08:30]} Nf6 {[%emt 0:00:30]} 7. Be3 {[%emt 0:00:30]} Qc7 {[%emt 0:00:00]} 8. Bd3 {[%emt 0:04:30]} Be7 {[%emt 0:02:00]} 9. O-O {[%emt 0:01:30]} Ne5 {[%emt 0:00:30]} 10. Bf4 {[%emt 0:07:30]} h6 {[%emt 0:06:30]} 11. Bg3 {[%emt 0:02:30]} g5 {[%emt 0:00:30]} 12. f4 {[%emt 0:01:30]} gxf4 {[%emt 0:02:30]} 13. Bxf4 {[%emt 0:02:30]} Qb6+ {[%emt 0:06:30]} 14. Kh1 {[%emt 0:01:30]} Ng6 {[%emt 0:01:30]} 15. Bg3 {[%emt 0:02:30]} h5 {[%emt 0:00:30]} 16. N1d2 {[%emt 0:01:30]} h4 {[%emt 0:00:30]} 17. Nc4 {[%emt 0:01:30]} Qd8 {[%emt 0:04:30]} 18. Bd6 {[%emt 0:05:30]} b5 {[%emt 0:03:30]} 19. Bxe7 {[%emt 0:02:30]} Qxe7 {[%emt 0:00:00]} 20. e5 {[%emt 0:02:30]} bxc4 {[%emt 0:02:00]} 21. exf6 {[%emt 0:00:30]} Qd6 {[%emt 0:02:30]} 22. Bxc4 {[%emt 0:00:30]} Qxd1 {[%emt 0:00:00]} 23. Raxd1 {[%emt 0:01:30]} h3 {[%emt 0:01:00]} 24. g3 {[%emt 0:01:30]} Bb7+ {[%emt 0:00:30]} 25. Kg1 {[%emt 0:00:30]} O-O-O {[%emt 0:04:30]} 26. Nc5 {[%emt 0:08:30]} Bg2 {[%emt 0:02:30]} 27. Rfe1 {[%emt 0:01:30]} Rh5 {[%emt 0:00:30]} 28. Ba6+ {[%emt 0:07:30]} Kc7 {[%emt 0:00:30]} 29. b4 {[%emt 0:03:30]} Rf5 {[%emt 0:00:30]} 30. Bf1 {[%emt 0:04:30]} Bf3 {[%emt 0:08:30]} 31. Bxh3 {[%emt 0:02:30]} Rxc5 {[%emt 0:05:30]} 32. bxc5 {[%emt 0:00:30]} Bxd1 {[%emt 0:00:30]} 33. Rxd1 {[%emt 0:00:30]} Kc6 {[%emt 0:00:30]} 34. Rd6+ {[%emt 0:00:30]} Kxc5 {[%emt 0:00:30]} 35. Ra6 {[%emt 0:00:30]} Kc4 {[%emt 0:00:30]} 36. Rxa7 {[%emt 0:00:30]} Kxc3 {[%emt 0:00:30]} 37. Rb7 {[%emt 0:00:30]} Ne5 {[%emt 0:00:00]} 38. Bg2 {[%emt 0:02:29]} d5 {[%emt 0:00:00]} 39. h4 {[%emt 0:02:06]} d4 {[%emt 0:00:30]} 40. Rb5 {[%emt 0:01:55]} Ng4 {[%emt 0:03:30]} 41. Rb3+ {[%emt 0:02:09]} Kc2 {[%emt 0:00:30]} 42. Bf3 {[%emt 0:02:49]} Nxf6 {[%emt 0:01:30]} 43. Kf1 {[%emt 0:00:56]} d3 {[%emt 0:00:30]} 44. Rb6 {[%emt 0:00:38]} d2 {[%emt 0:02:30]} 45. Rc6+ {[%emt 0:00:14]} Kb2 {[%emt 0:00:30]} 46. Bd1 {[%emt 0:00:17]} Ne4 {[%emt 0:00:30]} 47. Rc2+ {[%emt 0:00:53]} Ka3 {[%emt 0:00:30]} 48. g4 {[%emt 0:02:23]} Kb4 {[%emt 0:00:30]} 49. Kg2 {[%emt 0:02:15]} Nc3 {[%emt 0:01:30]} 50. Kf2 {[%emt 0:02:44]} Nxd1+ {[%emt 0:00:30]} 51. Ke2 {[%emt 0:00:00]} Nc3+ {[%emt 0:00:00]} 0-1

[Event "Istanbul Open 2019"]
[Site "Istanbul"]
[Date "2019.08.27"]
[Round "3.3"]
[White "Makaraci, Tunahan"]
[Black "Ozsakallioglu, Okan"]
[Result "1-0"]
[ECO "B51"]
[WhiteElo "2064"]
[BlackElo "2324"]
[Annotator "NA"]
[PlyCount "81"]
[EventDate "2019.08.26"]
[EventType "swiss"]
[EventCountry "TUR"]
[SourceTitle "playchess.com"]
[Source "ChessBase"]
[SourceQuality "1"]
[TimeControl "5400+30"]

1. e4 {[%emt 0:00:30]} c5 {[%emt 0:00:30]} 2. Nf3 {[%emt 0:00:00]} d6 {[%emt 0:00:30]} 3. Bb5+ {[%emt 0:00:00]} Nd7 {[%emt 0:00:00]} 4. d4 {[%emt 0:00:30]} cxd4 {[%emt 0:00:00]} 5. Qxd4 {[%emt 0:00:30]} a6 {[%emt 0:00:30]} 6. Bxd7+ {[%emt 0:00:00]} Bxd7 {[%emt 0:00:30]} 7. O-O {[%emt 0:00:00]} e5 {[%emt 0:00:00]} 8. Qd3 {[%emt 0:00:00]} h6 {[%emt 0:00:00]} 9. a4 {[%emt 0:00:00]} Nf6 {[%emt 0:00:00]} 10. c4 {[%emt 0:00:00]} b5 {[%emt 0:00:00]} 11. b3 {[%emt 0:03:00]} Be7 {[%emt 0:01:30]} 12. Nc3 {[%emt 0:05:30]} b4 {[%emt 0:00:30]} 13. Nd5 {[%emt 0:00:30]} Nxd5 {[%emt 0:00:30]} 14. cxd5 {[%emt 0:00:00]} f5 {[%emt 0:00:30]} 15. exf5 {[%emt 0:10:00]} O-O {[%emt 0:00:00]} 16. g4 {[%emt 0:00:30]} g6 {[%emt 0:05:00]} 17. Bxh6 {[%emt 0:16:30]} gxf5 {[%emt 0:00:30]} 18. Bxf8 {[%emt 0:00:30]} Qxf8 {[%emt 0:00:30]} 19. gxf5 {[%emt 0:00:30]} Bxf5 {[%emt 0:00:00]} 20. Qe3 {[%emt 0:00:00]} Bg4 {[%emt 0:00:00]} 21. Nd2 {[%emt 0:01:00]} Qf5 {[%emt 0:02:30]} 22. f3 {[%emt 0:05:30]} Bh3 {[%emt 0:00:30]} 23. Kh1 {[%emt 0:00:30]} Bxf1 {[%emt 0:00:30]} 24. Rxf1 {[%emt 0:00:30]} Rc8 {[%emt 0:01:30]} 25. Ne4 {[%emt 0:06:30]} Qh3 {[%emt 0:02:30]} 26. Qe2 {[%emt 0:01:30]} a5 {[%emt 0:06:30]} 27. Nf2 {[%emt 0:12:30]} Qf5 {[%emt 0:02:30]} 28. Ng4 {[%emt 0:00:30]} Bg5 {[%emt 0:00:30]} 29. Qg2 {[%emt 0:01:30]} Kf8 {[%emt 0:00:30]} 30. Nf2 {[%emt 0:09:30]} Rc2 {[%emt 0:01:30]} 31. Qg3 {[%emt 0:00:30]} Bf4 {[%emt 0:00:30]} 32. Qh4 {[%emt 0:00:00]} Bg5 {[%emt 0:02:30]} 33. Qh8+ {[%emt 0:01:00]} Ke7 {[%emt 0:00:30]} 34. Qh5 {[%emt 0:03:30]} Rxf2 {[%emt 0:08:30]} 35. Rxf2 {[%emt 0:00:00]} Qb1+ {[%emt 0:00:00]} 36. Kg2 {[%emt 0:00:00]} Be3 {[%emt 0:00:00]} 37. Qh4+ {[%emt 0:01:30]} Kf7 {[%emt 0:03:30]} 38. Qe4 {[%emt 0:01:30]} Qc1 {[%emt 0:00:00]} 39. Qf5+ {[%emt 0:00:30]} Kg7 {[%emt 0:00:00]} 40. Rc2 {[%emt 0:00:00]} Qg1+ {[%emt 0:01:30]} 41. Kh3 {[%emt 0:00:00]} 1-0

[Event "Istanbul Open 2019"]
[Site "Istanbul"]
[Date "2019.08.27"]
[Round "3.5"]
[White "Citak, Selim"]
[Black "Abishli, Oghuz"]
[Result "0-1"]
[ECO "A90"]
[WhiteElo "2263"]
[BlackElo "2038"]
[Annotator "NA"]
[PlyCount "64"]
[EventDate "2019.08.26"]
[EventType "swiss"]
[EventCountry "TUR"]
[SourceTitle "playchess.com"]
[Source "ChessBase"]
[SourceQuality "1"]
[TimeControl "5400+30"]

1. d4 {[%emt 0:00:30]} e6 {[%emt 0:00:30]} 2. c4 {[%emt 0:00:00]} f5 {[%emt 0:00:00]} 3. g3 {[%emt 0:00:00]} Nf6 {[%emt 0:00:00]} 4. Bg2 {[%emt 0:00:30]} d5 {[%emt 0:00:30]} 5. Nf3 {[%emt 0:00:30]} c6 {[%emt 0:00:00]} 6. O-O {[%emt 0:00:30]} Bd6 {[%emt 0:00:00]} 7. b3 {[%emt 0:00:00]} Qe7 {[%emt 0:00:00]} 8. a4 {[%emt 0:00:00]} a5 {[%emt 0:00:00]} 9. Ba3 {[%emt 0:00:00]} Bb4 {[%emt 0:13:30]} 10. Bxb4 {[%emt 0:01:00]} axb4 {[%emt 0:00:00]} 11. Qc2 {[%emt 0:05:30]} O-O {[%emt 0:07:00]} 12. Nbd2 {[%emt 0:00:30]} Ne4 {[%emt 0:01:30]} 13. Ne5 {[%emt 0:02:30]} Nd7 {[%emt 0:09:30]} 14. Nd3 {[%emt 0:00:30]} b6 {[%emt 0:03:30]} 15. cxd5 {[%emt 0:05:30]} cxd5 {[%emt 0:00:30]} 16. Nxe4 {[%emt 0:03:30]} fxe4 {[%emt 0:02:30]} 17. Nf4 {[%emt 0:02:30]} Nf6 {[%emt 0:10:30]} 18. Qc6 {[%emt 0:02:30]} Bd7 {[%emt 0:00:30]} 19. Qxb6 {[%emt 0:02:30]} Rfb8 {[%emt 0:00:30]} 20. Qc7 {[%emt 0:03:30]} Rc8 {[%emt 0:00:30]} 21. Qe5 {[%emt 0:00:30]} Ng4 {[%emt 0:05:30]} 22. Qh5 {[%emt 0:02:30]} Nf6 {[%emt 0:00:30]} 23. Qh4 {[%emt 0:01:30]} Rc3 {[%emt 0:05:30]} 24. Rfb1 {[%emt 0:01:30]} Qd6 {[%emt 0:10:30]} 25. Nh5 {[%emt 0:05:30]} e5 {[%emt 0:05:30]} 26. dxe5 {[%emt 0:01:30]} Qxe5 {[%emt 0:00:30]} 27. Nxf6+ {[%emt 0:00:30]} gxf6 {[%emt 0:01:30]} 28. Ra2 {[%emt 0:03:30]} Rac8 {[%emt 0:03:30]} 29. Qh6 {[%emt 0:00:30]} d4 {[%emt 0:06:21]} 30. Qf4 {[%emt 0:01:30]} Qxf4 {[%emt 0:00:52]} 31. Raa1 {[%emt 0:01:30]} Qe5 {[%emt 0:00:30]} 32. Ra2 {[%emt 0:00:30]} Be6 {[%emt 0:00:30]} 0-1